{"text_format":"3","workbook":"xlsx","n_sheets":1,"sheets":["COSTI DI RISTRUTTURAZIONE"],"not_rendered":{"images":2,"defined_names":4},"read":"whole","date_system":"1900"}

{"sheet":"COSTI DI RISTRUTTURAZIONE","index":0,"n_rows":28,"n_cols":8,"rows_kept":28,"merged":[[25,1,25,5],[26,1,26,5],[27,1,27,5]]}
[null,"FOGLIO DI LAVORO COSTI RISTRUTTURAZIONE CUCINA"]
[]
[null,"Categoria","Articoli","Quantità","Costo stimato","Costo effettivo","Costo stimato totale","Costo effettivo totale"]
[null,"Mobili","Mobili base: Modulare standard (q.tà in metri lineari)",25,{"v":5,"d":"€ 5.00"},null,{"$f":"Dati[[#This Row],[Quantità]]*Dati[[#This Row],[Costo stimato]]","v":{"v":125,"d":"€ 125"}},{"$f":"Dati[[#This Row],[Quantità]]*Dati[[#This Row],[Costo effettivo]]","v":{"v":0,"d":"€ 0"}}]
[null,"Mobili","Pensili: Modulare standard (q.tà in metri lineari)",25,{"v":3.5,"d":"€ 3.50"},null,{"$f":"Dati[[#This Row],[Quantità]]*Dati[[#This Row],[Costo stimato]]","v":{"v":87.5,"d":"€ 88"}},{"$f":"Dati[[#This Row],[Quantità]]*Dati[[#This Row],[Costo effettivo]]","v":{"v":0,"d":"€ 0"}}]
[null,"Elettrodomestici per pulizia","Lavastoviglie: Standard",1,{"v":250,"d":"€ 250.00"},null,{"$f":"Dati[[#This Row],[Quantità]]*Dati[[#This Row],[Costo stimato]]","v":{"v":250,"d":"€ 250"}},{"$f":"Dati[[#This Row],[Quantità]]*Dati[[#This Row],[Costo effettivo]]","v":{"v":0,"d":"€ 0"}}]
[null,"Elettrodomestici per pulizia","Tritarifiuti: Standard",1,{"v":175,"d":"€ 175.00"},null,{"$f":"Dati[[#This Row],[Quantità]]*Dati[[#This Row],[Costo stimato]]","v":{"v":175,"d":"€ 175"}},{"$f":"Dati[[#This Row],[Quantità]]*Dati[[#This Row],[Costo effettivo]]","v":{"v":0,"d":"€ 0"}}]
[null,"Elettrodomestici per cottura","Fornello: Da incasso, standard",1,{"v":375,"d":"€ 375.00"},null,{"$f":"Dati[[#This Row],[Quantità]]*Dati[[#This Row],[Costo stimato]]","v":{"v":375,"d":"€ 375"}},{"$f":"Dati[[#This Row],[Quantità]]*Dati[[#This Row],[Costo effettivo]]","v":{"v":0,"d":"€ 0"}}]
[null,"Elettrodomestici per cottura","Microonde: Standard",1,{"v":300,"d":"€ 300.00"},null,{"$f":"Dati[[#This Row],[Quantità]]*Dati[[#This Row],[Costo stimato]]","v":{"v":300,"d":"€ 300"}},{"$f":"Dati[[#This Row],[Quantità]]*Dati[[#This Row],[Costo effettivo]]","v":{"v":0,"d":"€ 0"}}]
[null,"Piani di lavoro","Solid surface (quantità in metri lineari)",23,{"v":10,"d":"€ 10.00"},null,{"$f":"Dati[[#This Row],[Quantità]]*Dati[[#This Row],[Costo stimato]]","v":{"v":230,"d":"€ 230"}},{"$f":"Dati[[#This Row],[Quantità]]*Dati[[#This Row],[Costo effettivo]]","v":{"v":0,"d":"€ 0"}}]
[null,"Porte","Per interni: Impiallacciato",1,{"v":65,"d":"€ 65.00"},null,{"$f":"Dati[[#This Row],[Quantità]]*Dati[[#This Row],[Costo stimato]]","v":{"v":65,"d":"€ 65"}},{"$f":"Dati[[#This Row],[Quantità]]*Dati[[#This Row],[Costo effettivo]]","v":{"v":0,"d":"€ 0"}}]
[null,"Extra","Extra: Acqua calda immediata, standard",1,{"v":120,"d":"€ 120.00"},null,{"$f":"Dati[[#This Row],[Quantità]]*Dati[[#This Row],[Costo stimato]]","v":{"v":120,"d":"€ 120"}},{"$f":"Dati[[#This Row],[Quantità]]*Dati[[#This Row],[Costo effettivo]]","v":{"v":0,"d":"€ 0"}}]
[null,"Extra","Extra: Dispenser di sapone",1,{"v":40,"d":"€ 40.00"},null,{"$f":"Dati[[#This Row],[Quantità]]*Dati[[#This Row],[Costo stimato]]","v":{"v":40,"d":"€ 40"}},{"$f":"Dati[[#This Row],[Quantità]]*Dati[[#This Row],[Costo effettivo]]","v":{"v":0,"d":"€ 0"}}]
[null,"Rubinetti","Rubinetto: A leva, Standard",1,{"v":130,"d":"€ 130.00"},null,{"$f":"Dati[[#This Row],[Quantità]]*Dati[[#This Row],[Costo stimato]]","v":{"v":130,"d":"€ 130"}},{"$f":"Dati[[#This Row],[Quantità]]*Dati[[#This Row],[Costo effettivo]]","v":{"v":0,"d":"€ 0"}}]
[null,"Pavimento","Laminato (quantità in metri quadrati)",165,{"v":3.5,"d":"€ 3.50"},null,{"$f":"Dati[[#This Row],[Quantità]]*Dati[[#This Row],[Costo stimato]]","v":{"v":577.5,"d":"€ 578"}},{"$f":"Dati[[#This Row],[Quantità]]*Dati[[#This Row],[Costo effettivo]]","v":{"v":0,"d":"€ 0"}}]
[null,"Elettrodomestici per lavaggio","Lavatrice: Standard",1,{"v":500,"d":"€ 500.00"},null,{"$f":"Dati[[#This Row],[Quantità]]*Dati[[#This Row],[Costo stimato]]","v":{"v":500,"d":"€ 500"}},{"$f":"Dati[[#This Row],[Quantità]]*Dati[[#This Row],[Costo effettivo]]","v":{"v":0,"d":"€ 0"}}]
[null,"Elettrodomestici per lavaggio","Asciugatrice: Standard",1,{"v":375,"d":"€ 375.00"},null,{"$f":"Dati[[#This Row],[Quantità]]*Dati[[#This Row],[Costo stimato]]","v":{"v":375,"d":"€ 375"}},{"$f":"Dati[[#This Row],[Quantità]]*Dati[[#This Row],[Costo effettivo]]","v":{"v":0,"d":"€ 0"}}]
[null,"Illuminazione","Illuminazione: Faretti incassati",4,{"v":35,"d":"€ 35.00"},null,{"$f":"Dati[[#This Row],[Quantità]]*Dati[[#This Row],[Costo stimato]]","v":{"v":140,"d":"€ 140"}},{"$f":"Dati[[#This Row],[Quantità]]*Dati[[#This Row],[Costo effettivo]]","v":{"v":0,"d":"€ 0"}}]
[null,"Frigoriferi","Frigorifero: Esterno, Deluxe",1,{"v":1200,"d":"€ 1,200.00"},null,{"$f":"Dati[[#This Row],[Quantità]]*Dati[[#This Row],[Costo stimato]]","v":{"v":1200,"d":"€ 1,200"}},{"$f":"Dati[[#This Row],[Quantità]]*Dati[[#This Row],[Costo effettivo]]","v":{"v":0,"d":"€ 0"}}]
[null,"Lavelli","Acciaio inossidabile a doppia vasca, Deluxe",1,{"v":125,"d":"€ 125.00"},null,{"$f":"Dati[[#This Row],[Quantità]]*Dati[[#This Row],[Costo stimato]]","v":{"v":125,"d":"€ 125"}},{"$f":"Dati[[#This Row],[Quantità]]*Dati[[#This Row],[Costo effettivo]]","v":{"v":0,"d":"€ 0"}}]
[null,"Ventilazione","Cappa: Aspirante, Standard",1,{"v":180,"d":"€ 180.00"},null,{"$f":"Dati[[#This Row],[Quantità]]*Dati[[#This Row],[Costo stimato]]","v":{"v":180,"d":"€ 180"}},{"$f":"Dati[[#This Row],[Quantità]]*Dati[[#This Row],[Costo effettivo]]","v":{"v":0,"d":"€ 0"}}]
[null,"Pareti","Pannello di rivestimento (quantità in metri quadrati)",70,{"v":2,"d":"€ 2.00"},null,{"$f":"Dati[[#This Row],[Quantità]]*Dati[[#This Row],[Costo stimato]]","v":{"v":140,"d":"€ 140"}},{"$f":"Dati[[#This Row],[Quantità]]*Dati[[#This Row],[Costo effettivo]]","v":{"v":0,"d":"€ 0"}}]
[null,"Finestre","Scorrevoli",2,{"v":120,"d":"€ 120.00"},null,{"$f":"Dati[[#This Row],[Quantità]]*Dati[[#This Row],[Costo stimato]]","v":{"v":240,"d":"€ 240"}},{"$f":"Dati[[#This Row],[Quantità]]*Dati[[#This Row],[Costo effettivo]]","v":{"v":0,"d":"€ 0"}}]
[null,"Altro",{"$nulls":4},{"$f":"Dati[[#This Row],[Quantità]]*Dati[[#This Row],[Costo stimato]]","v":{"v":0,"d":"€ 0"}},{"$f":"Dati[[#This Row],[Quantità]]*Dati[[#This Row],[Costo effettivo]]","v":{"v":0,"d":"€ 0"}}]
[null,"Totale",null,null,{"$f":"SUBTOTAL(109,Dati[Costo stimato])","v":{"v":4014,"d":"€ 4,014.00"}},{"$f":"SUBTOTAL(109,Dati[Costo effettivo])","v":{"v":0,"d":"€ 0.00"}},{"$f":"SUBTOTAL(109,Dati[Costo stimato totale])","v":{"v":5375,"d":"€ 5,375.00"}},{"$f":"SUBTOTAL(109,Dati[Costo effettivo totale])","v":{"v":0,"d":"€ 0.00"}}]
[null,"Subtotale",{"$nulls":4},{"$f":"SUBTOTAL(109,Dati[Costo stimato totale])","v":{"v":5375,"d":"€ 5,375.00"}},{"$f":"SUBTOTAL(109,Dati[Costo effettivo totale])","v":{"v":0,"d":"€ 0.00"}}]
[null,"Costi imprevisti, aggiungere il 30%",{"$nulls":4},{"$f":"G26*0.3","v":{"v":1612.5,"d":"€ 1,612.50"}},{"$f":"H26*0.3","v":{"v":0,"d":"€ 0.00"}}]
[null,"Totale",{"$nulls":4},{"$f":"SUM(G26:G27)","v":{"v":6987.5,"d":"€ 6,987.50"}},{"$f":"SUM(H26:H27)","v":{"v":0,"d":"€ 0.00"}}]